[Event "*** MasterClass Titled Tuesday Blitz"]
[Site "Chess.com"]
[Date "2017.10.03"]
[Round "6"]
[White "DiogenesSinopeus"]
[Black "SabinaFoisor"]
[Result "0-1"]
[WhiteElo "2344"]
[BlackElo "2296"]
[TimeControl "180+2"]
[EndTime "14:24:50 PDT"]
[Termination "SabinaFoisor won by resignation"]

1. d4 {[%clk 0:03:01.9]} 1... d5 {[%clk 0:03:00.4]} 2. c4 {[%clk 0:03:02.2]}
2... e6 {[%clk 0:03:00.2]} 3. Nc3 {[%clk 0:03:03.6]} 3... Nf6 {[%clk 0:03:01.2]}
4. cxd5 {[%clk 0:03:04.9]} 4... exd5 {[%clk 0:03:01.7]} 5. Bg5 {[%clk
0:03:06.4]} 5... Be7 {[%clk 0:03:01.9]} 6. e3 {[%clk 0:03:07.7]} 6... O-O {[%clk
0:03:02.8]} 7. Bd3 {[%clk 0:03:08.6]} 7... h6 {[%clk 0:02:57]} 8. Bh4 {[%clk
0:03:08.7]} 8... Ne4 {[%clk 0:02:53.5]} 9. Bxe7 {[%clk 0:03:01.9]} 9... Qxe7
{[%clk 0:02:53.6]} 10. Nxd5 {[%clk 0:02:53.8]} 10... Qh4 {[%clk 0:02:16.3]} 11.
g3 {[%clk 0:02:45]} 11... Nxg3 {[%clk 0:02:11.8]} 12. fxg3 {[%clk 0:02:42.8]}
12... Qg5 {[%clk 0:02:12.7]} 13. Nxc7 {[%clk 0:02:25.4]} 13... Qa5+ {[%clk
0:02:03.3]} 14. Qd2 {[%clk 0:02:22.5]} 14... Qxc7 {[%clk 0:02:04.2]} 15. Rc1
{[%clk 0:02:20.4]} 15... Qe7 {[%clk 0:01:58.4]} 16. Nf3 {[%clk 0:02:19.1]} 16...
Bh3 {[%clk 0:01:55.3]} 17. Kf2 {[%clk 0:02:12.2]} 17... Nc6 {[%clk 0:01:54.4]}
18. Rhe1 {[%clk 0:02:08.5]} 18... Rae8 {[%clk 0:01:50.4]} 19. a3 {[%clk
0:02:05.2]} 19... Qf6 {[%clk 0:01:42.1]} 20. Be2 {[%clk 0:01:51.8]} 20... Rd8
{[%clk 0:01:30.8]} 21. Kg1 {[%clk 0:01:51]} 21... Rfe8 {[%clk 0:01:30.3]} 22.
Rc3 {[%clk 0:01:49.6]} 22... a6 {[%clk 0:01:18.9]} 23. Qd1 {[%clk 0:01:34]}
23... Ne7 {[%clk 0:01:16.4]} 24. Bf1 {[%clk 0:01:34.6]} 24... Bg4 {[%clk
0:01:12.7]} 25. Bg2 {[%clk 0:01:31]} 25... Nd5 {[%clk 0:01:13.6]} 26. e4 {[%clk
0:01:23.1]} 26... Nxc3 {[%clk 0:01:08]} 27. bxc3 {[%clk 0:01:25]} 27... Qc6
{[%clk 0:01:04.2]} 28. Qd3 {[%clk 0:01:19.4]} 28... Bxf3 {[%clk 0:00:59.5]} 29.
Qxf3 {[%clk 0:01:17.9]} 29... Rc8 {[%clk 0:00:57.6]} 30. Re3 {[%clk 0:01:15.4]}
30... Qb5 {[%clk 0:00:54.3]} 31. h4 {[%clk 0:01:13.6]} 31... Rc6 {[%clk
0:00:48.1]} 32. e5 {[%clk 0:01:14.3]} 32... Rg6 {[%clk 0:00:42]} 33. Qxb7 {[%clk
0:01:06.8]} 33... Qxb7 {[%clk 0:00:34.8]} 34. Bxb7 {[%clk 0:01:08.7]} 34... Rb6
{[%clk 0:00:31.1]} 35. Bd5 {[%clk 0:01:09.7]} 35... Rb1+ {[%clk 0:00:27.6]} 36.
Kf2 {[%clk 0:01:08.3]} 36... Rb2+ {[%clk 0:00:29.5]} 37. Kf3 {[%clk 0:01:08.9]}
37... Kf8 {[%clk 0:00:27.9]} 38. Ke4 {[%clk 0:01:06.8]} 38... f6 {[%clk
0:00:25.7]} 39. e6 {[%clk 0:01:06.9]} 39... Ke7 {[%clk 0:00:26]} 40. c4 {[%clk
0:01:07.1]} 40... g6 {[%clk 0:00:22]} 41. g4 {[%clk 0:01:06]} 41... Rf2 {[%clk
0:00:21.1]} 42. c5 {[%clk 0:01:04.9]} 42... f5+ {[%clk 0:00:20.1]} 43. gxf5
{[%clk 0:01:06.2]} 43... Rxf5 {[%clk 0:00:21.7]} 44. Bc4 {[%clk 0:01:04.5]}
44... Kf6 {[%clk 0:00:20.8]} 45. d5 {[%clk 0:01:05]} 45... a5 {[%clk 0:00:20.1]}
46. Rf3 {[%clk 0:00:56.6]} 46... Rxf3 {[%clk 0:00:19.8]} 47. Kxf3 {[%clk
0:00:58.5]} 47... Rc8 {[%clk 0:00:20.1]} 48. c6 {[%clk 0:00:47.3]} 48... Ke5
{[%clk 0:00:20.3]} 49. Ba6 {[%clk 0:00:38.2]} 49... Rb8 {[%clk 0:00:18.6]} 50.
e7 {[%clk 0:00:34.6]} 50... Kd6 {[%clk 0:00:18.7]} 51. Bb7 {[%clk 0:00:24.2]}
51... Re8 {[%clk 0:00:19]} 52. Ba6 {[%clk 0:00:10.8]} 52... Rxe7 {[%clk
0:00:19.4]} 53. Bd3 {[%clk 0:00:12.4]} 53... g5 {[%clk 0:00:19.6]} 54. hxg5
{[%clk 0:00:13.8]} 54... hxg5 {[%clk 0:00:21.5]} 55. Kg4 {[%clk 0:00:14.9]}
55... Re5 {[%clk 0:00:22.1]} 56. Bc4 {[%clk 0:00:15.2]} 56... Re4+ {[%clk
0:00:23.1]} 0-1

[Event "*** MasterClass Titled Tuesday Blitz"]
[Site "Chess.com"]
[Date "2017.10.03"]
[Round "6"]
[White "Margency"]
[Black "AdrianaNikolova"]
[Result "1-0"]
[WhiteElo "2521"]
[BlackElo "2397"]
[TimeControl "180+2"]
[EndTime "14:24:58 PDT"]
[Termination "Margency won by resignation"]

1. e4 {[%clk 0:03:01.9]} 1... c5 {[%clk 0:03:00.4]} 2. Nf3 {[%clk 0:03:02.4]}
2... Nc6 {[%clk 0:02:59.1]} 3. d4 {[%clk 0:03:03.2]} 3... cxd4 {[%clk
0:02:58.8]} 4. Nxd4 {[%clk 0:03:05.1]} 4... d6 {[%clk 0:03:00.3]} 5. Nc3 {[%clk
0:03:06.4]} 5... Nf6 {[%clk 0:03:01.3]} 6. Bg5 {[%clk 0:03:07.9]} 6... e6 {[%clk
0:03:01.3]} 7. Qd2 {[%clk 0:03:09.3]} 7... a6 {[%clk 0:03:02.5]} 8. O-O-O {[%clk
0:03:10.4]} 8... h6 {[%clk 0:03:03.8]} 9. Be3 {[%clk 0:03:11.6]} 9... Bd7 {[%clk
0:03:02.7]} 10. f3 {[%clk 0:03:12.7]} 10... Rc8 {[%clk 0:03:03.3]} 11. Kb1
{[%clk 0:03:13.9]} 11... Ne5 {[%clk 0:03:04.2]} 12. g4 {[%clk 0:03:13.1]} 12...
b5 {[%clk 0:03:05.1]} 13. Bd3 {[%clk 0:03:14.2]} 13... Nc4 {[%clk 0:03:05.2]}
14. Bxc4 {[%clk 0:03:15]} 14... bxc4 {[%clk 0:03:05.1]} 15. h4 {[%clk
0:03:15.2]} 15... Bc6 {[%clk 0:02:58.1]} 16. g5 {[%clk 0:03:13]} 16... Nd7
{[%clk 0:02:47.1]} 17. g6 {[%clk 0:03:08.8]} 17... Nc5 {[%clk 0:02:23.2]} 18.
gxf7+ {[%clk 0:03:03.9]} 18... Kxf7 {[%clk 0:02:25.1]} 19. Qg2 {[%clk
0:02:54.7]} 19... Be7 {[%clk 0:01:58]} 20. Rhg1 {[%clk 0:02:30.5]} 20... Bf6
{[%clk 0:01:52.7]} 21. Qg6+ {[%clk 0:02:18.5]} 21... Ke7 {[%clk 0:01:41.7]} 22.
Nf5+ {[%clk 0:02:09.8]} 22... exf5 {[%clk 0:01:20.6]} 23. Bxc5 {[%clk
0:02:10.3]} 23... Be8 {[%clk 0:01:17.9]} 24. Nd5+ {[%clk 0:01:52.9]} 24... Kf8
{[%clk 0:01:18.5]} 25. Qxf5 {[%clk 0:01:35.2]} 25... Rxc5 {[%clk 0:01:19.2]} 26.
e5 {[%clk 0:01:13.2]} 26... dxe5 {[%clk 0:00:36.6]} 27. Nf4 {[%clk 0:01:12.2]}
27... exf4 {[%clk 0:00:37]} 28. Qxc5+ {[%clk 0:01:08.2]} 28... Qe7 {[%clk
0:00:38.4]} 29. Qxc4 {[%clk 0:01:07.2]} 29... Qe5 {[%clk 0:00:38.2]} 30. Qb4+
{[%clk 0:01:03.1]} 30... Kg8 {[%clk 0:00:36]} 31. Rde1 {[%clk 0:00:47]} 31...
Qb5 {[%clk 0:00:36.4]} 32. Qa3 {[%clk 0:00:41.4]} 32... Kh7 {[%clk 0:00:34.9]}
33. c3 {[%clk 0:00:34.9]} 33... Qd3+ {[%clk 0:00:31.6]} 34. Ka1 {[%clk
0:00:35.5]} 34... Bg6 {[%clk 0:00:32.1]} 35. Qb4 {[%clk 0:00:29.4]} 35... Rc8
{[%clk 0:00:27.5]} 36. Rd1 {[%clk 0:00:27.2]} 36... Qxf3 {[%clk 0:00:27.4]} 37.
Rdf1 {[%clk 0:00:28]} 37... Qd3 {[%clk 0:00:26.1]} 38. Rd1 {[%clk 0:00:27.3]}
38... Qc2 {[%clk 0:00:26.9]} 39. Rc1 {[%clk 0:00:28.2]} 39... Qh2 {[%clk
0:00:26.8]} 40. Rxg6 {[%clk 0:00:22.7]} 40... Kxg6 {[%clk 0:00:27.5]} 41. Qe4+
{[%clk 0:00:23.2]} 41... Kf7 {[%clk 0:00:23.1]} 42. Qb7+ {[%clk 0:00:23]} 42...
Be7 {[%clk 0:00:13.2]} 43. Qxc8 {[%clk 0:00:22.3]} 43... Qxh4 {[%clk 0:00:12.8]}
44. Qxa6 {[%clk 0:00:21.3]} 44... Qg5 {[%clk 0:00:10.6]} 45. Qc4+ {[%clk
0:00:21.6]} 45... Kg6 {[%clk 0:00:06.3]} 46. Rf1 {[%clk 0:00:22.6]} 46... Bd6
{[%clk 0:00:05.9]} 47. Qd3+ {[%clk 0:00:23.5]} 47... Qf5 {[%clk 0:00:05.4]} 48.
Qxd6+ {[%clk 0:00:23.4]} 48... Kh7 {[%clk 0:00:07.3]} 49. Qxf4 {[%clk
0:00:24.2]} 49... Qc2 {[%clk 0:00:09.2]} 50. Qf5+ {[%clk 0:00:24.9]} 1-0

[Event "*** MasterClass Titled Tuesday Blitz"]
[Site "Chess.com"]
[Date "2017.10.03"]
[Round "6"]
[White "NTBT_DHS"]
[Black "swayamsm"]
[Result "1-0"]
[WhiteElo "2522"]
[BlackElo "2490"]
[TimeControl "180+2"]
[EndTime "14:25:00 PDT"]
[Termination "NTBT_DHS won by checkmate"]

1. d4 {[%clk 0:02:53.4]} 1... Nf6 {[%clk 0:03:01]} 2. c4 {[%clk 0:02:52.4]} 2...
e6 {[%clk 0:03:02]} 3. Nf3 {[%clk 0:02:52.3]} 3... b6 {[%clk 0:03:02.8]} 4. g3
{[%clk 0:02:53.4]} 4... Bb7 {[%clk 0:03:02.2]} 5. Bg2 {[%clk 0:02:54.2]} 5...
Bb4+ {[%clk 0:03:03.8]} 6. Nc3 {[%clk 0:02:53.5]} 6... Ne4 {[%clk 0:02:49.9]} 7.
Bd2 {[%clk 0:02:53.3]} 7... Bxc3 {[%clk 0:02:49]} 8. bxc3 {[%clk 0:02:46.2]}
8... Nxd2 {[%clk 0:02:43.9]} 9. Qxd2 {[%clk 0:02:47.1]} 9... O-O {[%clk
0:02:45.4]} 10. O-O {[%clk 0:02:47.7]} 10... d6 {[%clk 0:02:44]} 11. Rfe1 {[%clk
0:02:30.5]} 11... Nc6 {[%clk 0:02:41.7]} 12. Qd3 {[%clk 0:02:23.2]} 12... Na5
{[%clk 0:02:41.6]} 13. Nd2 {[%clk 0:02:06.6]} 13... Bxg2 {[%clk 0:02:39.3]} 14.
Kxg2 {[%clk 0:02:08.5]} 14... c5 {[%clk 0:02:41]} 15. Rad1 {[%clk 0:02:03.6]}
15... Qc7 {[%clk 0:02:26.8]} 16. d5 {[%clk 0:01:51.6]} 16... e5 {[%clk
0:02:22.3]} 17. e4 {[%clk 0:01:49.6]} 17... Qd7 {[%clk 0:02:19.9]} 18. Rb1
{[%clk 0:01:39.5]} 18... Qa4 {[%clk 0:02:18.1]} 19. Rb2 {[%clk 0:01:30.4]} 19...
Rae8 {[%clk 0:02:08.1]} 20. g4 {[%clk 0:01:25.3]} 20... Re7 {[%clk 0:01:59.3]}
21. h4 {[%clk 0:01:22.7]} 21... Rb8 {[%clk 0:01:59.9]} 22. Re3 {[%clk
0:01:17.2]} 22... Reb7 {[%clk 0:01:59.9]} 23. h5 {[%clk 0:00:55.4]} 23... b5
{[%clk 0:01:47.6]} 24. cxb5 {[%clk 0:00:49.7]} 24... Rxb5 {[%clk 0:01:49.5]} 25.
Rxb5 {[%clk 0:00:50.6]} 25... Rxb5 {[%clk 0:01:51.2]} 26. h6 {[%clk 0:00:49.7]}
26... c4 {[%clk 0:01:31.2]} 27. Qe2 {[%clk 0:00:47.2]} 27... Qxa2 {[%clk
0:01:28.5]} 28. g5 {[%clk 0:00:34]} 28... Rb2 {[%clk 0:01:21.3]} 29. Qg4 {[%clk
0:00:33.8]} 29... Rb8 {[%clk 0:01:16.7]} 30. Nf3 {[%clk 0:00:28.9]} 30... Qa4
{[%clk 0:01:10]} 31. hxg7 {[%clk 0:00:29.4]} 31... Nb3 {[%clk 0:00:55.4]} 32.
Nh4 {[%clk 0:00:29.6]} 32... Nd2 {[%clk 0:00:48.8]} 33. Nf5 {[%clk 0:00:18.7]}
33... Qa1 {[%clk 0:00:48.8]} 34. Qe2 {[%clk 0:00:13.2]} 34... Rb2 {[%clk
0:00:41.3]} 35. Nxd6 {[%clk 0:00:13.5]} 35... Nxe4 {[%clk 0:00:36.2]} 36. Nxe4
{[%clk 0:00:09]} 36... Rxe2 {[%clk 0:00:36.4]} 37. Rxe2 {[%clk 0:00:10.9]} 37...
Qd1 {[%clk 0:00:36.3]} 38. Nf6+ {[%clk 0:00:10.4]} 38... Kxg7 {[%clk 0:00:37.2]}
39. Rxe5 {[%clk 0:00:12.3]} 39... a5 {[%clk 0:00:30.5]} 40. d6 {[%clk 0:00:13]}
40... h6 {[%clk 0:00:16.5]} 41. Rd5 {[%clk 0:00:13.2]} 41... Qe2 {[%clk
0:00:10.9]} 42. d7 {[%clk 0:00:13.9]} 42... hxg5 {[%clk 0:00:09]} 43. d8=Q
{[%clk 0:00:14.9]} 43... Kg6 {[%clk 0:00:04.9]} 44. Qg8+ {[%clk 0:00:11.4]}
44... Kxf6 {[%clk 0:00:04.5]} 45. Qxg5+ {[%clk 0:00:12.5]} 45... Ke6 {[%clk
0:00:06.1]} 46. Qf5+ {[%clk 0:00:13.8]} 46... Ke7 {[%clk 0:00:07.7]} 47. Rd7+
{[%clk 0:00:15.7]} 47... Ke8 {[%clk 0:00:09.2]} 48. Qxf7# {[%clk 0:00:17.6]} 1-0

[Event "*** MasterClass Titled Tuesday Blitz"]
[Site "Chess.com"]
[Date "2017.10.03"]
[Round "6"]
[White "TryingToGetBetter94"]
[Black "pastouche06"]
[Result "0-1"]
[WhiteElo "2290"]
[BlackElo "2284"]
[TimeControl "180+2"]
[EndTime "14:25:09 PDT"]
[Termination "pastouche06 won on time"]

1. d4 {[%clk 0:02:58.3]} 1... Nf6 {[%clk 0:02:58.6]} 2. c4 {[%clk 0:02:59.4]}
2... e6 {[%clk 0:02:58]} 3. Nc3 {[%clk 0:03:00.5]} 3... c5 {[%clk 0:02:57.5]} 4.
d5 {[%clk 0:03:01.5]} 4... exd5 {[%clk 0:02:59.4]} 5. cxd5 {[%clk 0:03:03.4]}
5... d6 {[%clk 0:02:43.3]} 6. Nf3 {[%clk 0:03:03.6]} 6... g6 {[%clk 0:02:34.9]}
7. Nd2 {[%clk 0:03:04.1]} 7... Bg7 {[%clk 0:02:35.8]} 8. e4 {[%clk 0:03:05.5]}
8... O-O {[%clk 0:02:37.2]} 9. Be2 {[%clk 0:03:07.2]} 9... b6 {[%clk 0:02:38.3]}
10. O-O {[%clk 0:03:07.6]} 10... Ba6 {[%clk 0:02:21.8]} 11. Bxa6 {[%clk
0:02:43]} 11... Nxa6 {[%clk 0:02:23.7]} 12. Nc4 {[%clk 0:02:44.6]} 12... Nc7
{[%clk 0:02:20.2]} 13. Bf4 {[%clk 0:02:39.6]} 13... Nfe8 {[%clk 0:02:15.3]} 14.
Re1 {[%clk 0:02:39.8]} 14... b5 {[%clk 0:02:13.1]} 15. Na5 {[%clk 0:02:33.5]}
15... b4 {[%clk 0:02:10.9]} 16. Nc6 {[%clk 0:02:28.8]} 16... Qd7 {[%clk
0:02:10.7]} 17. Na4 {[%clk 0:02:21.8]} 17... Nb5 {[%clk 0:02:11.1]} 18. Qd3
{[%clk 0:02:10.3]} 18... Nd4 {[%clk 0:02:11.5]} 19. Rac1 {[%clk 0:02:11.7]}
19... Nxc6 {[%clk 0:02:11.4]} 20. dxc6 {[%clk 0:02:10.6]} 20... Qxc6 {[%clk
0:02:13.3]} 21. b3 {[%clk 0:02:10.3]} 21... Rd8 {[%clk 0:02:10.3]} 22. e5 {[%clk
0:02:06.8]} 22... Qc8 {[%clk 0:01:23.3]} 23. exd6 {[%clk 0:02:05.2]} 23... Bd4
{[%clk 0:01:22.3]} 24. Qxd4 {[%clk 0:00:49.4]} 24... cxd4 {[%clk 0:01:24.1]} 25.
Rxc8 {[%clk 0:00:51.2]} 25... Nxd6 {[%clk 0:01:05.2]} 26. Rxd8 {[%clk
0:00:39.7]} 26... Rxd8 {[%clk 0:01:07.1]} 27. Bg5 {[%clk 0:00:37.9]} 27... Rc8
{[%clk 0:01:04.2]} 28. Bf6 {[%clk 0:00:34.8]} 28... Nb5 {[%clk 0:01:02.6]} 29.
Nc5 {[%clk 0:00:30.9]} 29... h6 {[%clk 0:01:00.4]} 30. h4 {[%clk 0:00:22]} 30...
g5 {[%clk 0:00:58]} 31. h5 {[%clk 0:00:22.9]} 31... Nd6 {[%clk 0:00:53.4]} 32.
Bxd4 {[%clk 0:00:21.9]} 32... Nf5 {[%clk 0:00:53.5]} 33. Bf6 {[%clk 0:00:16.7]}
33... Kh7 {[%clk 0:00:53.6]} 34. Na6 {[%clk 0:00:14.6]} 34... Rc6 {[%clk
0:00:53]} 35. Nxb4 {[%clk 0:00:12.6]} 35... Rxf6 {[%clk 0:00:53.9]} 36. g3
{[%clk 0:00:12.7]} 36... Nd4 {[%clk 0:00:54.2]} 37. Kg2 {[%clk 0:00:14.3]} 37...
Rb6 {[%clk 0:00:53.4]} 38. Nd5 {[%clk 0:00:13.9]} 38... Ra6 {[%clk 0:00:52.3]}
39. a4 {[%clk 0:00:14.7]} 39... Nxb3 {[%clk 0:00:52.6]} 40. Re7 {[%clk
0:00:15.9]} 40... Kg7 {[%clk 0:00:51.9]} 41. Nc3 {[%clk 0:00:16.5]} 41... Nc5
{[%clk 0:00:51.2]} 42. Re1 {[%clk 0:00:15.6]} 42... Nxa4 {[%clk 0:00:50.9]} 43.
Ne4 {[%clk 0:00:12.9]} 43... Re6 {[%clk 0:00:50.8]} 44. g4 {[%clk 0:00:13.2]}
44... Nc3 {[%clk 0:00:50.7]} 45. f3 {[%clk 0:00:13.6]} 45... Nxe4 {[%clk
0:00:51.1]} 46. fxe4 {[%clk 0:00:15.5]} 46... Kf6 {[%clk 0:00:46]} 47. Kf3
{[%clk 0:00:14.6]} 47... Ra6 {[%clk 0:00:45.6]} 48. Re3 {[%clk 0:00:15.7]} 48...
Ke5 {[%clk 0:00:46.6]} 49. Rb3 {[%clk 0:00:15.2]} 49... Ra5 {[%clk 0:00:47.1]}
50. Rc3 {[%clk 0:00:16.4]} 50... f6 {[%clk 0:00:44.9]} 51. Rb3 {[%clk
0:00:17.2]} 51... Rc5 {[%clk 0:00:44.9]} 52. Re3 {[%clk 0:00:09.8]} 52... a5
{[%clk 0:00:45.3]} 53. Kg3 {[%clk 0:00:11.3]} 53... a4 {[%clk 0:00:45.7]} 54.
Rf3 {[%clk 0:00:10.7]} 54... Ke6 {[%clk 0:00:43.8]} 55. Re3 {[%clk 0:00:06.8]}
55... Rb5 {[%clk 0:00:43.1]} 56. Kg2 {[%clk 0:00:07]} 56... Rb2+ {[%clk
0:00:43.1]} 57. Kf1 {[%clk 0:00:04.7]} 57... Rb3 {[%clk 0:00:44.2]} 58. Re2
{[%clk 0:00:05.6]} 58... Ke5 {[%clk 0:00:45.4]} 59. Rf2 {[%clk 0:00:06.4]} 59...
Kxe4 {[%clk 0:00:43.7]} 60. Rxf6 {[%clk 0:00:07.4]} 60... Rf3+ {[%clk
0:00:44.5]} 61. Rxf3 {[%clk 0:00:06.8]} 61... Kxf3 {[%clk 0:00:46.4]} 0-1

[Event "*** MasterClass Titled Tuesday Blitz"]
[Site "Chess.com"]
[Date "2017.10.03"]
[Round "6"]
[White "dtn70"]
[Black "pultineviciuspaulius"]
[Result "1-0"]
[WhiteElo "2318"]
[BlackElo "2414"]
[TimeControl "180+2"]
[EndTime "14:25:26 PDT"]
[Termination "dtn70 won by resignation"]

1. e4 {[%clk 0:03:01.9]} 1... e5 {[%clk 0:02:59.8]} 2. Nf3 {[%clk 0:03:02.3]}
2... Nc6 {[%clk 0:03:01.1]} 3. Bb5 {[%clk 0:03:03.2]} 3... a6 {[%clk 0:03:02.4]}
4. Bxc6 {[%clk 0:03:04.3]} 4... dxc6 {[%clk 0:03:03.2]} 5. O-O {[%clk
0:03:05.5]} 5... Ne7 {[%clk 0:03:04.3]} 6. b3 {[%clk 0:02:55]} 6... Ng6 {[%clk
0:03:02.6]} 7. Bb2 {[%clk 0:02:53.2]} 7... Bg4 {[%clk 0:03:02.9]} 8. h3 {[%clk
0:02:49.9]} 8... h5 {[%clk 0:03:03.8]} 9. d3 {[%clk 0:02:45.2]} 9... Qf6 {[%clk
0:03:03.3]} 10. Nbd2 {[%clk 0:02:42.2]} 10... Bc5 {[%clk 0:03:04]} 11. Nc4
{[%clk 0:02:23.5]} 11... O-O-O {[%clk 0:03:03]} 12. Ne3 {[%clk 0:02:03.2]} 12...
Bxf3 {[%clk 0:02:54.4]} 13. Qxf3 {[%clk 0:02:03.5]} 13... Qxf3 {[%clk 0:02:55]}
14. gxf3 {[%clk 0:02:05.4]} 14... Nh4 {[%clk 0:02:56.7]} 15. Nf5 {[%clk
0:01:55.1]} 15... Nxf5 {[%clk 0:02:51.9]} 16. exf5 {[%clk 0:01:55.9]} 16... f6
{[%clk 0:02:53.5]} 17. h4 {[%clk 0:01:46.9]} 17... Bd4 {[%clk 0:02:50.7]} 18. c3
{[%clk 0:01:40.6]} 18... Bb6 {[%clk 0:02:44.9]} 19. Rad1 {[%clk 0:01:41.1]}
19... g6 {[%clk 0:02:24.3]} 20. fxg6 {[%clk 0:01:40.2]} 20... Rhg8 {[%clk
0:02:26.2]} 21. Kh2 {[%clk 0:01:35.7]} 21... Rxg6 {[%clk 0:02:27.4]} 22. Rg1
{[%clk 0:01:26.7]} 22... Rxg1 {[%clk 0:02:08.4]} 23. Kxg1 {[%clk 0:01:24.6]}
23... Kd7 {[%clk 0:02:07.3]} 24. f4 {[%clk 0:01:20.1]} 24... Rg8+ {[%clk
0:02:03.2]} 25. Kf1 {[%clk 0:01:20.3]} 25... Rg4 {[%clk 0:02:04]} 26. fxe5
{[%clk 0:01:17.7]} 26... fxe5 {[%clk 0:02:05.9]} 27. Re1 {[%clk 0:01:17.7]}
27... Kd6 {[%clk 0:01:56.2]} 28. Re4 {[%clk 0:01:17.8]} 28... Rg8 {[%clk
0:01:50.1]} 29. Ke2 {[%clk 0:01:12.5]} 29... Rg2 {[%clk 0:01:49.3]} 30. d4
{[%clk 0:01:09.8]} 30... exd4 {[%clk 0:01:51.1]} 31. cxd4 {[%clk 0:01:10.5]}
31... Rg6 {[%clk 0:01:27.4]} 32. Re5 {[%clk 0:00:55.2]} 32... Re6 {[%clk
0:01:20.9]} 33. f4 {[%clk 0:00:54.5]} 33... Rxe5+ {[%clk 0:01:12.5]} 34. fxe5+
{[%clk 0:00:47.9]} 34... Kd5 {[%clk 0:01:08.6]} 35. Kf3 {[%clk 0:00:45.9]} 35...
c5 {[%clk 0:01:09.9]} 36. dxc5 {[%clk 0:00:45.5]} 36... Bxc5 {[%clk 0:01:11.8]}
37. Kf4 {[%clk 0:00:45.7]} 37... Be7 {[%clk 0:01:13]} 38. Kg3 {[%clk 0:00:41.2]}
38... Ke4 {[%clk 0:01:07.2]} 39. Bc3 {[%clk 0:00:41.2]} 39... Kd3 {[%clk
0:01:01.9]} 40. Bb2 {[%clk 0:00:39.8]} 40... Kc2 {[%clk 0:00:58.4]} 41. Bd4
{[%clk 0:00:40]} 41... Kd3 {[%clk 0:00:57.4]} 42. Bb2 {[%clk 0:00:40.5]} 42...
c5 {[%clk 0:00:52.3]} 43. Bc1 {[%clk 0:00:39.8]} 43... Ke4 {[%clk 0:00:49.9]}
44. Bg5 {[%clk 0:00:21.1]} 44... Bxg5 {[%clk 0:00:16.3]} 45. hxg5 {[%clk
0:00:21.7]} 45... Kf5 {[%clk 0:00:07.1]} 46. Kh4 {[%clk 0:00:18.9]} 46... Kg6
{[%clk 0:00:08.4]} 47. e6 {[%clk 0:00:18.6]} 47... b5 {[%clk 0:00:09.5]} 48. e7
{[%clk 0:00:11.9]} 48... Kf7 {[%clk 0:00:10.8]} 49. Kxh5 {[%clk 0:00:11.8]}
49... Kxe7 {[%clk 0:00:11.6]} 50. Kg4 {[%clk 0:00:11.8]} 50... Ke6 {[%clk
0:00:08.3]} 51. Kf4 {[%clk 0:00:12.7]} 51... Kf7 {[%clk 0:00:07.1]} 52. Kf5
{[%clk 0:00:13.2]} 52... Kg7 {[%clk 0:00:07.7]} 53. Ke5 {[%clk 0:00:13.7]} 53...
Kg6 {[%clk 0:00:08.1]} 54. Kd5 {[%clk 0:00:15]} 54... c4 {[%clk 0:00:09.5]} 55.
bxc4 {[%clk 0:00:15.4]} 55... bxc4 {[%clk 0:00:11.3]} 56. Kxc4 {[%clk
0:00:16.4]} 56... Kxg5 {[%clk 0:00:13.1]} 57. Kc5 {[%clk 0:00:17.8]} 57... Kf6
{[%clk 0:00:14.7]} 58. Kb6 {[%clk 0:00:19.4]} 58... Ke7 {[%clk 0:00:16.6]} 59.
Kxa6 {[%clk 0:00:20.3]} 59... Kd6 {[%clk 0:00:13]} 60. Kb6 {[%clk 0:00:20.2]}
60... Kd7 {[%clk 0:00:11.8]} 61. Kb7 {[%clk 0:00:20.1]} 1-0